bitfinex/quotes_SOLUSD_20250814
["timestamp","ask_amount","ask_price","bid_price","bid_amount"]
[1755212620915,0.06,192.23,192.22,5.76406068]
[1755212621116,0.06,192.23,192.22,10.96643296]
[1755212624019,0.72,192.23,192.18,5.20345509]
[1755212624227,0.66,192.22,192.18,5.20345509]
[1755212624428,0.66,192.21,192.16,5.76406068]
[1755212624843,0.66,192.2,192.16,5.76406068]
[1755212625041,3.49445451,192.21,192.16,5.76406068]
[1755212625248,0.66,192.19,192.15,26.03]
[1755212625418,0.66,192.19,192.16,5.76406068]
[1755212626035,0.66,192.19,192.17,5.76406068]
[1755212626236,15.10621557,192.2,192.17,5.76406068]
[1755212626535,15.76621557,192.2,192.17,5.76406068]
[1755212627837,52.74621557,192.2,192.17,5.76406068]
[1755212628035,52.08621557,192.2,192.17,5.76406068]
[1755212628209,0.66,192.19,192.16,5.76406068]
[1755212628409,0.66,192.18,192.16,5.76406068]
[1755212628643,52.06621557,192.2,192.17,5.76406068]
[1755212628848,0.66,192.19,192.17,5.76406068]
[1755212629218,0.66,192.19,192.16,5.76406068]
[1755212630332,0.66,192.19,192.15,31.23421902]
[1755212630645,0.66,192.19,192.16,5.76406068]
[1755212631115,0.66,192.19,192.17,5.76406068]
[1755212632523,37.6,192.19,192.17,5.76406068]
[1755212632927,0.06,192.23,192.18,6.10406068]
[1755212633138,15.10621557,192.22,192.2,5.76406068]
[1755212633518,52.02621557,192.22,192.2,5.76406068]
[1755212634157,52.68621557,192.22,192.2,5.76406068]
[1755212634943,36.92,192.21,192.2,5.76406068]
[1755212635127,36.92,192.22,192.2,10.9669328]
[1755212635324,36.92,192.22,192.2,5.76406068]
[1755212636244,36.9,192.21,192.2,5.76406068]
[1755212636741,0.66,192.22,192.2,5.76406068]
[1755212636948,36.9,192.21,192.2,10.96697431]
[1755212637650,36.9,192.21,192.2,5.76406068]
[1755212638326,0.66,192.22,192.2,5.76406068]
[1755212638634,36.88,192.21,192.2,5.76406068]
[1755212639049,36.88,192.21,192.2,10.96697431]
[1755212639348,0.66,192.22,192.2,10.96697431]
[1755212639519,36.88,192.21,192.2,10.96697431]
[1755212640245,0.66,192.22,192.2,10.96697431]
[1755212640542,36.86,192.21,192.2,10.96697431]
[1755212640852,0.06,192.23,192.2,10.96697431]
[1755212641145,36.86,192.21,192.2,5.20291363]
[1755212642273,36.86,192.21,192.2,10.96697431]
[1755212642549,37.52,192.21,192.2,5.76406068]
[1755212642959,36.86,192.21,192.2,5.76406068]
[1755212644049,0.06,192.23,192.2,5.76406068]
[1755212644230,0.06,192.23,192.17,18.21304052]
[1755212644231,0.06,192.23,192.22,5.76406068]
[1755212644855,0.06,192.23,192.22,6.10406068]
[1755212645730,0.06,192.23,192.22,8.18755668]
[1755212645951,0.06,192.23,192.22,34.18755668]
[1755212646140,0.06,192.23,192.22,39.38992896]
[1755212648229,0.06,192.23,192.22,13.38992896]
[1755212653258,0.06,192.23,192.22,13.04992896]
[1755212653667,0.06,192.23,192.22,13.38992896]
[1755212654271,0.06,192.23,192.22,13.04992896]
[1755212659247,0.72,192.23,192.21,5.76406068]
[1755212659450,0.72,192.23,192.2,0.03]
[1755212659663,0.72,192.23,192.2,5.79406068]
[1755212660470,0.72,192.23,192.2,0.03]
[1755212660773,0.72,192.23,192.2,5.79406068]
[1755212661175,0.66,192.22,192.21,10.96670362]
[1755212661378,0.06,192.23,192.21,10.96670362]
[1755212661560,0.06,192.23,192.22,5.76406068]
[1755212662277,0.72,192.23,192.22,5.76406068]
[1755212663067,0.72,192.23,192.21,5.20264294]
[1755212663379,0.72,192.23,192.22,10.96643296]
[1755212665784,0.72,192.23,192.22,5.20237228]
[1755212665991,0.72,192.23,192.22,10.96643296]
[1755212666993,0.72,192.23,192.22,5.76406068]
[1755212667304,0.72,192.23,192.22,5.79406068]
[1755212667583,0.72,192.23,192.22,10.99643296]
[1755212672311,0.72,192.23,192.22,0.03]
[1755212672591,0.72,192.23,192.22,5.79406068]
[1755212672794,0.72,192.23,192.22,0.03]
[1755212672996,0.72,192.23,192.22,5.79406068]
[1755212674169,0.72,192.23,192.22,0.03]
[1755212674368,0.72,192.23,192.22,10.99643296]
[1755212675871,0.72,192.23,192.22,5.79406068]
[1755212676068,0.72,192.23,192.22,0.03]
[1755212676270,0.72,192.23,192.22,5.79406068]
[1755212677587,0.72,192.23,192.22,10.99643296]
[1755212678191,0.06,192.23,192.22,10.99643296]
[1755212683302,0.06,192.23,192.22,37.33643296]
[1755212683598,0.06,192.23,192.22,39.41992896]
[1755212684985,0.06,192.23,192.22,13.41992896]
[1755212685192,0.1,192.25,192.24,26.0]
[1755212685508,0.1,192.25,192.24,31.76406068]
[1755212685808,0.1,192.25,192.24,32.10406068]
[1755212686522,0.1,192.25,192.24,34.18712268]
[1755212687288,0.1,192.25,192.24,39.38895372]
[1755212688094,0.1,192.25,192.24,39.04895372]
[1755212691508,0.78,192.25,192.23,5.76406068]
[1755212692008,0.78,192.25,192.24,5.76406068]
[1755212692903,0.78,192.25,192.24,10.96589172]
[1755212693213,0.78,192.25,192.24,5.76406068]
[1755212696596,0.78,192.25,192.24,10.96589172]
[1755212700328,0.1,192.25,192.24,10.96589172]
[1755212700714,0.79,192.25,192.24,5.76406068]
[1755212702198,0.79,192.25,192.22,0.03]
[1755212702605,3.5028554,192.24,192.22,0.03]
[1755212703136,0.69,192.23,192.22,5.79406068]
[1755212703712,0.1,192.25,192.22,5.79406068]
[1755212704231,0.1,192.25,192.24,5.76406068]
[1755212704434,0.79,192.25,192.24,10.96589172]
[1755212705131,0.79,192.25,192.23,5.20204754]
[1755212705314,0.1,192.25,192.24,5.76406068]
[1755212705926,9.49492681,192.25,192.22,0.03]
[1755212706133,3.50333435,192.24,192.22,0.03]
[1755212706340,3.50333435,192.23,192.22,0.03]
[1755212706501,9.39543599,192.23,192.22,0.03]
[1755212706701,8.70543599,192.23,192.22,0.03]
[1755212706901,9.39543599,192.23,192.22,0.03]
[1755212707201,15.10621557,192.22,192.2,0.03]
[1755212707402,28.7504596,192.21,192.18,0.03]
[1755212707619,15.10621557,192.18,192.16,0.03]
[1755212707931,5.76406068,192.19,192.15,0.03]
[1755212707932,15.10621557,192.16,192.15,0.03]
[1755212708136,18.60954992,192.16,192.15,0.03]
[1755212708434,19.29954992,192.16,192.15,0.03]
[1755212708840,24.50354658,192.16,192.15,0.03]
[1755212709716,30.26760726,192.16,192.15,0.03]
[1755212711739,30.26760726,192.16,192.11,0.03]
[1755212711740,43.27759893,192.16,192.11,0.03]
[1755212712032,20.87027625,192.12,192.11,0.03]
[1755212712224,61.1336106,192.12,192.11,0.03]
[1755212712428,67.02869075,192.12,192.11,0.03]
[1755212713140,67.01159259,192.12,192.11,0.03]
[1755212716140,61.24753191,192.12,192.11,0.03]
[1755212716344,67.01159259,192.12,192.11,0.03]
[1755212718035,97.01159259,192.12,192.11,0.03]
[1755212719238,45.79621557,192.12,192.11,0.03]
[1755212719448,15.10621557,192.12,192.11,5.79406068]
[1755212719621,51.86621557,192.12,192.11,5.79406068]
[1755212720233,51.86621557,192.12,192.11,0.03]
[1755212721739,15.10621557,192.12,192.11,0.03]
[1755212721920,51.86621557,192.12,192.11,0.03]
[1755212723562,15.10621557,192.12,192.11,0.03]
[1755212723758,51.86621557,192.12,192.11,0.03]
[1755212730445,51.86621557,192.12,192.11,5.79406068]
[1755212731049,51.86621557,192.12,192.11,0.03]
[1755212732447,51.92621557,192.12,192.11,0.03]
[1755212732945,15.16621557,192.12,192.11,0.03]
[1755212733247,15.16621557,192.12,192.11,6.25406068]
[1755212733248,0.06,192.12,192.11,6.25406068]
[1755212734158,0.06,192.12,192.11,11.45941178]
[1755212734447,0.06,192.12,192.11,5.6953511]
[1755212734759,0.06,192.12,192.11,5.79406068]
[1755212735430,0.76,192.12,192.11,5.79406068]
[1755212735632,0.76,192.12,192.11,0.03]
[1755212737250,0.06,192.12,192.11,0.03]
[1755212738635,0.76,192.12,192.11,0.03]
[1755212739533,0.06,192.12,192.11,5.79406068]
[1755212739744,0.06,192.12,192.11,0.03]
[1755212740058,0.06,192.12,192.11,5.79406068]
[1755212743462,0.06,192.12,192.11,11.45941178]
[1755212744556,0.06,192.12,192.11,10.99941178]
[1755212745958,0.06,192.12,192.11,0.03]
[1755212746144,0.76,192.12,192.11,5.79406068]
[1755212746549,0.06,192.12,192.11,0.03]
[1755212746752,0.76,192.12,192.11,5.79406068]
[1755212748064,0.06,192.12,192.11,5.79406068]
[1755212749665,0.76,192.12,192.11,0.03]
[1755212749969,0.76,192.12,192.11,5.79406068]
[1755212750265,4.25341229,192.12,192.11,5.79406068]
[1755212750564,0.76,192.12,192.11,5.79406068]
[1755212750935,0.06,192.12,192.11,5.79406068]
[1755212757175,0.76,192.12,192.11,5.79406068]
[1755212759279,0.06,192.12,192.11,5.79406068]
[1755212762472,3.56604611,192.12,192.11,5.79406068]
[1755212762683,0.06,192.12,192.11,11.45941178]
[1755212763866,0.06,192.12,192.11,10.99941178]
[1755212764076,0.06,192.12,192.11,5.79406068]
[1755212764276,4.27800807,192.12,192.11,5.79406068]
[1755212764554,0.77,192.12,192.11,5.79406068]
[1755212765272,0.06,192.12,192.11,5.79406068]
[1755212766585,0.06,192.12,192.11,10.99941178]
[1755212766801,0.06,192.12,192.11,11.45941178]
[1755212766962,1e-08,192.12,192.11,11.97994689]
[1755212767166,0.06,192.14,192.13,26.0]
[1755212767395,0.06,192.14,192.13,31.76406068]
[1755212767571,0.06,192.14,192.13,32.22406068]
[1755212768092,0.06,192.14,192.13,37.42886992]
[1755212769588,0.06,192.14,192.13,74.16886992]
[1755212769790,0.06,192.16,192.13,80.45341152]
[1755212769976,0.06,192.16,192.15,5.76406068]
[1755212770375,0.06,192.16,192.15,6.22406068]
[1755212772263,0.06,192.16,192.15,11.42832817]
[1755212773711,0.77,192.16,192.15,10.96832817]
[1755212774579,0.06,192.16,192.15,10.96832817]
[1755212779925,0.06,192.16,192.14,5.20453835]
[1755212780111,0.77,192.16,192.15,5.76406068]
[1755212780400,0.06,192.16,192.15,5.76406068]
[1755212780785,0.77,192.16,192.15,5.76406068]
[1755212781498,0.77,192.16,192.15,10.96832817]
[1755212783386,0.77,192.16,192.15,5.76406068]
[1755212784998,0.06,192.16,192.15,5.76406068]
[1755212785415,0.06,192.16,192.15,10.96832817]
[1755212785709,0.77,192.16,192.15,5.76406068]
[1755212785884,0.77,192.16,192.15,10.96832817]
[1755212786086,0.06,192.16,192.15,10.96832817]
[1755212786686,0.77,192.16,192.15,10.96832817]
[1755212787988,0.06,192.16,192.15,10.96832817]
[1755212789092,0.06,192.16,192.15,11.42832817]
[1755212789298,0.06,192.16,192.15,10.96832817]
[1755212790020,0.06,192.16,192.15,47.68832817]
[1755212793813,0.06,192.16,192.15,48.14832817]
[1755212795408,0.06,192.16,192.15,47.68832817]
[1755212797396,0.06,192.16,192.15,48.14832817]
[1755212798003,1e-08,192.16,192.15,48.14832817]
[1755212798202,1e-08,192.16,192.15,50.23225817]
[1755212798809,1e-08,192.16,192.15,39.05225817]
[1755212799009,1e-08,192.16,192.15,73.68832817]
[1755212800291,1e-08,192.16,192.15,67.92426749]
[1755212800496,1e-08,192.16,192.15,73.68832817]
[1755212801018,1e-08,192.16,192.15,5.76406068]
[1755212801019,0.66000001,192.16,192.15,5.76406068]
[1755212802113,0.66000001,192.16,192.15,10.96832817]
[1755212803415,0.66000001,192.16,192.14,5.79406068]
[1755212803918,0.66000001,192.16,192.15,5.76406068]
[1755212807022,0.66000001,192.16,192.14,5.23453687]
[1755212807323,1e-08,192.16,192.15,5.76406068]
[1755212807713,0.66000001,192.16,192.15,5.76406068]
[1755212807913,0.66000001,192.16,192.14,5.23453687]
[1755212808103,1e-08,192.16,192.15,5.76406068]
[1755212808798,0.66000001,192.16,192.15,5.76406068]
[1755212810193,0.66000001,192.16,192.14,10.99859755]
[1755212810620,0.66,192.15,192.14,10.99859755]
[1755212810814,0.66,192.15,192.14,5.79406068]
[1755212811400,0.66,192.15,192.14,0.03]
[1755212811401,24.47705167,192.15,192.14,0.03]
[1755212811639,15.10621557,192.14,192.12,0.03]
[1755212811798,15.10621557,192.12,192.11,0.03]
[1755212811999,24.37684486,192.12,192.11,0.03]
[1755212812224,25.03684486,192.12,192.11,0.03]
[1755212812409,25.03684486,192.12,192.1,0.03]
[1755212812612,4.16656861,192.11,192.1,0.03]
[1755212812809,15.13598039,192.11,192.1,0.03]
[1755212816022,30.24219596,192.11,192.1,0.03]
[1755212818707,24.47813528,192.11,192.1,0.03]
[1755212818909,30.24219596,192.11,192.1,0.03]
[1755212819523,66.96219596,192.11,192.1,0.03]
[1755212820711,25.03684486,192.11,192.1,0.03]
[1755212820903,66.96219596,192.11,192.1,0.03]
[1755212821104,61.19813528,192.11,192.1,0.03]
[1755212821812,66.96219596,192.11,192.1,0.03]
[1755212824940,61.19813528,192.11,192.1,0.03]
[1755212825121,66.96219596,192.11,192.1,0.03]
[1755212827632,63.45562735,192.11,192.1,0.03]
[1755212828928,51.82621557,192.11,192.1,0.03]
[1755212829310,52.51621557,192.11,192.1,0.03]
[1755212830440,51.80621557,192.11,192.1,0.03]
[1755212832037,51.86621557,192.11,192.1,0.03]
[1755212835441,52.57621557,192.11,192.1,0.03]
[1755212836633,51.86621557,192.11,192.1,0.03]
[1755212837629,52.57621557,192.11,192.1,0.03]
[1755212841951,51.86621557,192.11,192.1,0.03]
[1755212842121,0.06,192.11,192.1,6.34406068]
[1755212842750,0.06,192.11,192.1,8.42907768]
[1755212843539,0.77,192.11,192.1,0.03]
[1755212843719,0.06,192.11,192.1,0.03]
[1755212843926,0.06,192.11,192.1,5.79406068]
[1755212845259,0.06,192.11,192.1,0.03]
[1755212845544,0.06,192.11,192.1,5.79406068]
[1755212846045,0.06,192.11,192.1,0.03]
[1755212846435,0.06,192.11,192.1,5.79406068]
[1755212846753,0.06,192.11,192.1,10.99968275]
[1755212848444,0.06,192.11,192.1,5.79406068]
[1755212849758,0.06,192.11,192.1,10.99968275]
[1755212850062,0.06,192.11,192.1,11.54968275]
[1755212850244,0.06,192.11,192.1,13.63491675]
[1755212850644,0.06,192.11,192.1,11.56034104]
[1755212853761,0.06,192.11,192.1,11.01034104]
[1755212854746,0.75,192.11,192.1,2.115234]
[1755212854983,0.75,192.11,192.1,0.03]
[1755212854984,19.35727513,192.11,192.1,0.03]
[1755212855162,23.0467601,192.11,192.1,0.03]
[1755212855737,19.35727513,192.11,192.1,0.03]
[1755212855940,23.0467601,192.11,192.1,0.03]
[1755212856145,28.2521112,192.11,192.1,0.03]
[1755212856760,30.33140864,192.11,192.1,0.03]
[1755212857263,25.12605754,192.11,192.1,0.03]
[1755212858359,30.33140864,192.11,192.1,0.03]
[1755212860465,56.33140864,192.11,192.1,0.03]
[1755212860669,56.33140864,192.11,192.09,0.03]
[1755212860871,61.74605754,192.1,192.08,0.03]
[1755212861084,15.10621557,192.08,192.07,0.03]
[1755212861372,15.10621557,192.08,192.06,0.03]
[1755212861373,15.10621557,192.07,192.06,0.03]
[1755212861578,25.06605754,192.07,192.06,0.03]
[1755212861943,19.29727513,192.07,192.06,0.03]
[1755212862577,55.97727513,192.07,192.06,0.03]
[1755212862958,55.28727513,192.07,192.06,0.03]
[1755212863469,55.97727513,192.07,192.06,0.03]
[1755212864073,66.95249269,192.07,192.06,0.03]
[1755212864277,66.95249269,192.07,192.05,0.03]
[1755212864572,25.06605754,192.06,192.05,0.03]
[1755212865375,29.4470318,192.06,192.05,0.03]
[1755212866277,25.06605754,192.06,192.05,0.03]
[1755212866459,30.27276377,192.06,192.05,0.03]
[1755212866660,24.50398136,192.06,192.05,0.03]
[1755212866863,55.28727513,192.06,192.05,0.03]
[1755212868580,3.50105956,192.06,192.05,5.79878241]
[1755212869175,51.78621557,192.07,192.05,6.46878241]
[1755212869384,51.78621557,192.07,192.06,5.76878241]
[1755212869677,55.28466862,192.07,192.06,5.76878241]
[1755212869988,18.60466862,192.07,192.06,5.76878241]
[1755212870182,18.60466862,192.07,192.05,5.79878241]
[1755212870381,15.10621557,192.07,192.05,5.79878241]
[1755212872771,168.58,192.08,192.06,5.76878241]
[1755212872964,168.58,192.08,192.07,5.76878241]
[1755212873168,40.17809931,192.08,192.06,5.76878241]
[1755212873387,36.68,192.08,192.06,5.76878241]
[1755212873769,37.37,192.08,192.06,5.76878241]
[1755212874177,3.49818203,192.07,192.06,5.76878241]
[1755212874493,37.37,192.08,192.06,5.76878241]
[1755212876984,36.68,192.08,192.06,5.76878241]
[1755212877359,36.68,192.08,192.06,10.97547068]
[1755212877561,36.68,192.08,192.07,5.76878241]
[1755212878367,0.75,192.11,192.07,5.76878241]
[1755212878568,40.17761008,192.1,192.07,5.76878241]
[1755212878875,9.39352789,192.09,192.05,5.79878241]
[1755212879077,4.18761008,192.08,192.05,5.79878241]
[1755212879377,0.69,192.08,192.05,5.79878241]
[1755212879971,0.69,192.08,192.05,0.03]
[1755212880172,0.69,192.08,192.05,5.79878241]
[1755212880173,37.37,192.08,192.05,5.79878241]
[1755212880379,36.68,192.08,192.07,5.76878241]
[1755212880582,40.17771584,192.08,192.07,5.76878241]
[1755212881685,3.49771584,192.08,192.07,6.43878241]
[1755212881876,15.16621557,192.09,192.07,11.64521756]
[1755212882069,15.16621557,192.09,192.08,5.76878241]
[1755212882388,3.55751353,192.09,192.08,5.76878241]
[1755212882585,0.06,192.09,192.08,5.76878241]
[1755212882900,0.06,192.09,192.07,5.76878241]
[1755212883779,0.06,192.09,192.08,5.76878241]
[1755212885373,0.06,192.09,192.06,16.91211685]
[1755212885579,4.15797197,192.08,192.05,5.79878241]
[1755212885778,0.66,192.07,192.05,5.79878241]
[1755212886183,36.68,192.08,192.06,5.76878241]
[1755212886394,37.34,192.08,192.06,5.76878241]
[1755212887604,0.66,192.07,192.06,5.76878241]
[1755212887897,36.68,192.08,192.06,5.76878241]
[1755212888278,37.34,192.08,192.06,5.76878241]
[1755212888474,36.68,192.08,192.07,5.76878241]
[1755212888680,40.17862695,192.08,192.07,5.76878241]
[1755212892096,36.68,192.08,192.07,5.76878241]
[1755212893696,36.68,192.08,192.07,10.97521756]
[1755212894296,0.06,192.09,192.07,10.97521756]
[1755212894808,0.06,192.09,192.08,5.76878241]
[1755212894990,3.55980089,192.09,192.08,5.76878241]
[1755212895188,3.55980089,192.09,192.07,10.97521756]
[1755212895407,0.06,192.09,192.07,10.97521756]
[1755212896010,0.06,192.09,192.08,10.9749465]
[1755212896177,0.06,192.11,192.1,26.0]
[1755212896499,0.06,192.11,192.1,31.76878241]
[1755212896678,0.06,192.11,192.1,32.43878241]
[1755212897181,0.06,192.11,192.1,35.93785641]
[1755212897377,0.06,192.11,192.1,36.45841861]
[1755212897700,0.06,192.11,192.1,35.93785641]
[1755212898090,0.06,192.11,192.1,41.14347848]
[1755212900110,0.06,192.11,192.1,40.47347848]
[1755212900403,0.06,192.11,192.1,34.70469607]
[1755212900602,0.06,192.11,192.1,40.47347848]
[1755212903380,0.72,192.11,192.1,14.47347848]
[1755212903903,0.72,192.11,192.1,9.26785641]
[1755212904296,0.72,192.11,192.1,5.76878241]
[1755212905059,0.72,192.11,192.1,10.97440448]
[1755212905211,0.06,192.11,192.1,10.97440448]
[1755212905596,0.06,192.11,192.1,5.20562207]
[1755212905796,0.06,192.11,192.1,10.97440448]
[1755212907210,0.06,192.11,192.1,13.05953048]
[1755212910593,0.72,192.11,192.1,13.05953048]
[1755212910994,0.06,192.11,192.1,39.05953048]
[1755212911198,0.06,192.15,192.13,26.0]
[1755212911410,0.06,192.15,192.14,42.40878241]
[1755212911608,0.06,192.15,192.14,5.76878241]
[1755212912007,0.06,192.15,192.14,7.85314741]
[1755212912207,0.06,192.15,192.14,13.05768576]
[1755212915002,0.06,192.15,192.14,18.82646817]
[1755212915396,0.06,192.15,192.14,13.05768576]
[1755212918723,0.06,192.15,192.14,49.69768576]
[1755212923222,0.06,192.15,192.14,55.986922]
[1755212923402,1e-08,192.15,192.14,55.986922]
[1755212924722,1e-08,192.15,192.14,50.21813959]
[1755212925230,1e-08,192.15,192.14,49.69768576]
[1755212925429,0.71000001,192.15,192.14,49.69768576]
[1755212925732,1e-08,192.15,192.14,49.69768576]
[1755212930231,1e-08,192.15,192.14,55.46646817]
[1755212931330,1e-08,192.15,192.14,55.49646817]
[1755212932918,0.06,192.18,192.17,26.0]
[1755212933220,0.06,192.18,192.17,68.90915499]
[1755212933420,0.06,192.18,192.17,68.38878241]
[1755212933624,0.06,192.18,192.17,70.47271241]
[1755212933819,0.06,192.18,192.17,44.47271241]
[1755212934419,0.77,192.18,192.17,44.47271241]
[1755212935140,0.77,192.18,192.17,75.67643827]
[1755212937337,0.77,192.18,192.17,49.67643827]
[1755212938841,0.06,192.18,192.17,50.19681085]
[1755212939048,0.06,192.18,192.17,49.67643827]
[1755212940333,0.06,192.18,192.17,50.19681085]
[1755212940930,0.06,192.18,192.17,49.67643827]
[1755212942745,0.72,192.18,192.17,13.05643827]
[1755212943042,0.72,192.18,192.17,49.67643827]
[1755212945650,0.72,192.18,192.17,47.59250827]
[1755212947546,0.06,192.18,192.17,47.59250827]
[1755212947735,0.72,192.18,192.17,41.82372586]
[1755212948068,0.72,192.18,192.17,47.59250827]
[1755212948366,0.06,192.18,192.17,47.59250827]
[1755212948936,0.72,192.18,192.17,47.59250827]
[1755212949156,0.72,192.18,192.17,47.62250827]
[1755212949726,0.06,192.18,192.17,47.62250827]
[1755212950464,0.72,192.18,192.17,47.62250827]
[1755212951856,0.06,192.18,192.17,47.62250827]
[1755212953158,0.06,192.21,192.2,26.0]
[1755212953361,0.06,192.21,192.2,68.38878241]
[1755212953748,0.06,192.21,192.2,70.47238741]
[1755212955156,0.06,192.21,192.2,75.67530104]
[1755212955867,0.06,192.21,192.2,39.05530104]
[1755212956078,0.06,192.21,192.2,75.67530104]
[1755212958675,0.06,192.21,192.2,39.05530104]
[1755212958846,0.06,192.21,192.2,75.67530104]
[1755212960249,0.06,192.21,192.2,75.65530104]
[1755212961649,0.72,192.21,192.2,75.65530104]
[1755212962739,0.72,192.21,192.2,2.083605]
[1755212962943,0.72,192.21,192.2,42.36878241]
[1755212963143,4.22158488,192.21,192.2,42.36878241]
[1755212963963,4.22158488,192.21,192.2,47.57169604]
[1755212965166,0.72,192.21,192.2,5.76878241]
[1755212965352,4.22209506,192.21,192.2,5.76878241]
[1755212966179,4.22209506,192.21,192.2,5.79878241]
[1755212969172,4.22272394,192.21,192.2,5.79878241]
[1755212970367,4.22272394,192.21,192.2,0.03]
[1755212970574,4.22272394,192.21,192.2,5.79878241]
[1755212971775,4.22272394,192.21,192.2,11.00169604]
[1755212972066,3.56272394,192.21,192.2,47.60169604]
[1755212972266,0.06,192.21,192.2,47.60169604]
[1755212973248,0.06,192.21,192.2,73.60169604]
[1755212975187,0.06,192.21,192.2,75.68540904]
[1755212976482,0.77,192.21,192.2,75.68540904]
[1755212977861,0.06,192.21,192.2,75.68540904]
[1755212979866,0.77,192.21,192.2,75.68540904]
[1755212981167,0.77,192.21,192.2,47.60169604]
[1755212982257,4.27314882,192.21,192.2,47.60169604]
[1755212985059,0.06,192.21,192.2,47.60169604]
[1755212986581,0.77,192.21,192.2,47.60169604]
[1755212986790,0.06,192.21,192.2,47.60169604]
[1755212988380,0.06,192.21,192.2,49.68540904]
[1755212991889,1e-08,192.21,192.2,49.68540904]
[1755212993577,0.06,192.23,192.22,26.0]
[1755212993790,0.06,192.24,192.22,68.36878241]
[1755212994296,0.06,192.24,192.23,2.083388]
[1755212994468,0.77,192.24,192.23,7.85217041]
[1755212995404,0.06,192.24,192.23,13.05427205]
[1755212995701,0.77,192.24,192.23,13.05427205]
[1755212999386,0.06,192.24,192.23,13.05427205]
[1755212999586,0.77,192.24,192.23,13.05427205]
[1755213000521,0.06,192.24,192.23,13.05427205]
[1755213000686,0.72,192.24,192.23,10.96908224]
[1755213001089,0.72,192.24,192.2,0.03]
[1755213001304,4.4035926,192.24,192.2,0.03]
[1755213001818,0.66,192.23,192.2,0.03]
[1755213002313,0.66,192.23,192.2,3.7135926]
[1755213002983,0.66,192.23,192.2,8.91637169]
[1755213004091,0.66,192.23,192.2,5.23277909]
[1755213004316,0.66,192.23,192.2,8.91637169]
[1755213004521,3.50227997,192.22,192.2,0.03]
[1755213004716,3.50227997,192.21,192.2,0.03]
[1755213005223,4.16227997,192.21,192.2,0.03]
[1755213005518,4.16238508,192.21,192.2,0.03]
[1755213006302,30.2323949,192.21,192.2,0.03]
[1755213006825,15.10621557,192.18,192.16,0.03]
[1755213007132,15.10621557,192.16,192.15,0.03]
[1755213007293,24.36975196,192.16,192.15,0.03]
[1755213007497,25.02975196,192.16,192.15,0.03]
[1755213007915,19.26860065,192.16,192.15,0.03]
[1755213008195,25.02975196,192.16,192.15,0.03]
[1755213008822,30.23374862,192.16,192.15,0.03]
[1755213009392,25.02975196,192.16,192.15,0.03]
[1755213010794,30.23374862,192.16,192.15,0.03]
[1755213013318,19.26860065,192.16,192.15,0.03]
[1755213013616,55.86860065,192.16,192.15,0.03]
[1755213014720,66.83374862,192.16,192.15,0.03]
[1755213015516,61.62975196,192.16,192.15,0.03]
[1755213016829,15.76621557,192.16,192.15,0.03]
[1755213017010,52.36621557,192.16,192.15,0.03]
[1755213017204,137.10329289,192.19,192.15,0.03]
[1755213017205,131.9,192.19,192.15,0.03]
[1755213017411,51.70621557,192.18,192.16,5.76115131]
[1755213017711,52.36621557,192.18,192.16,5.76115131]
[1755213017925,0.66,192.17,192.15,5.79115131]
[1755213020726,0.66,192.17,192.15,10.99541268]
[1755213021332,51.70621557,192.18,192.15,10.99541268]
[1755213021535,52.36621557,192.18,192.15,10.99541268]
[1755213021735,51.70621557,192.18,192.15,10.99541268]
[1755213023022,52.36621557,192.18,192.15,10.99541268]
[1755213023218,0.66,192.17,192.15,10.99541268]
[1755213024339,51.70621557,192.18,192.15,10.99541268]
[1755213024521,52.36621557,192.18,192.15,10.99541268]